bitfinex-derivatives/quotes_ETHF0:USTF0_20251107
["timestamp","ask_amount","ask_price","bid_price","bid_amount"]
[1762487358369,0.75069,3349.1,3349.0,0.48399]
[1762487358870,0.2700347,3349.4,3349.3,0.48395]
[1762487359067,0.7539647,3349.4,3349.3,0.48395]
[1762487359670,0.2700347,3349.4,3349.3,0.48395]
[1762487359879,0.0033347,3349.4,3349.3,0.76835]
[1762487360479,0.00448156,3349.7,3349.3,0.76835]
[1762487360782,0.1725,3350.0,3349.5,0.18]
[1762487361080,0.1725,3350.0,3349.5,0.2844]
[1762487361081,0.75061,3349.6,3349.5,0.2844]
[1762487361280,0.75061,3349.6,3349.0,12.3328]
[1762487361579,0.75724908,3349.6,3349.0,12.33728156]
[1762487361783,0.27333908,3349.6,3349.5,0.2844]
[1762487362478,0.2667,3349.5,3349.4,0.48393]
[1762487362684,0.4392,3349.5,3349.4,0.48393]
[1762487364583,0.49055908,3349.6,3349.5,0.3374]
[1762487364584,0.00663908,3349.6,3349.5,0.3374]
[1762487365384,0.00663908,3349.6,3349.5,0.82132]
[1762487367487,0.49054908,3349.6,3349.5,0.82132]
[1762487367687,0.00663908,3349.6,3349.5,0.82132]
[1762487370396,0.27333908,3349.6,3349.5,0.76832]
[1762487370896,3.13753908,3350.2,3349.6,0.48391]
[1762487371194,0.4839,3349.7,3349.6,0.76831]
[1762487371892,0.48643624,3349.7,3349.6,0.76831]
[1762487373591,0.48643624,3349.7,3349.0,3.21228156]
[1762487373592,0.75068,3349.1,3349.0,3.21228156]
[1762487373790,0.75068,3349.1,3349.0,0.00448156]
[1762487379502,0.48398,3349.1,3349.0,0.41038156]
[1762487379706,0.75568,3349.1,3349.0,0.15408156]
[1762487380003,0.75568,3349.1,3349.0,0.00448156]
[1762487381102,0.75568,3349.1,3349.0,0.15408156]
[1762487381894,0.75568,3349.1,3349.0,0.00448156]
[1762487385404,3.2078,3349.6,3349.1,0.2563]
[1762487385604,0.2717,3349.2,3349.1,0.2563]
[1762487385804,0.75568,3349.1,3349.0,0.15408156]
[1762487387006,0.75568,3349.1,3349.0,0.41038156]
[1762487387212,0.48398,3349.1,3349.0,0.89437156]
[1762487387406,0.75568,3349.1,3349.0,0.41038156]
[1762487388111,0.75568,3349.1,3349.0,0.00448156]
[1762487388307,0.48398,3349.1,3349.0,0.41038156]
[1762487388511,0.75568,3349.1,3349.0,0.89437156]
[1762487388700,0.48398,3349.1,3349.0,0.89437156]
[1762487390605,3.2078,3349.6,3349.1,0.74028]
[1762487390812,0.48397,3349.2,3349.1,0.2563]
[1762487391013,3.2078,3349.6,3349.0,0.15408156]
[1762487391014,0.75568,3349.1,3349.0,0.00448156]
[1762487391216,3.96348,3349.1,3349.0,0.00448156]
[1762487401017,0.48411,3348.2,3348.1,3.20993078]
[1762487401228,0.75581,3348.2,3348.1,0.00213078]
[1762487401718,0.48411,3348.2,3348.1,0.25843078]
[1762487401921,3.2078,3348.7,3348.6,0.2563]
[1762487402127,0.48402,3348.8,3348.7,0.2563]
[1762487402425,3.2078,3349.1,3349.0,0.88989]
[1762487402616,0.48395,3349.4,3349.3,0.2563]
[1762487403714,0.48398,3349.1,3349.0,0.1496]
[1762487403919,0.48402,3348.8,3348.7,0.2563]
[1762487404117,0.48402,3348.8,3348.7,0.74033]
[1762487404324,0.75575,3348.6,3348.5,3.6137]
[1762487404824,0.75575,3348.6,3348.5,0.1496]
[1762487405025,0.72308,3348.4,3348.1,3.69404078]
[1762487405426,0.72308,3348.4,3348.3,0.23738156]
[1762487406116,0.72308,3348.4,3348.3,0.00448156]
[1762487406632,3.2078,3348.8,3348.3,0.72147156]
[1762487406926,3.2078,3348.8,3348.5,0.1597]
[1762487407127,0.48405,3348.6,3348.5,0.87666]
[1762487407720,0.72305,3348.6,3348.5,0.1597]
[1762487408729,0.72308,3348.4,3348.3,0.00448156]
[1762487409027,3.93088,3348.4,3348.3,0.00448156]
[1762487412831,0.72319,3347.6,3347.5,0.1496]
[1762487413132,0.72319,3347.6,3347.5,0.63381]
[1762487413629,0.72319,3347.6,3347.5,0.1496]
[1762487413830,0.72319,3347.6,3347.5,0.86896751]
[1762487414232,0.72319,3347.6,3347.5,0.38475751]
[1762487416432,0.72319,3347.6,3347.5,0.00225751]
[1762487416634,0.72319,3347.6,3347.5,0.16195751]
[1762487416829,3.69198,3347.8,3347.7,0.2329]
[1762487417035,0.48418,3347.8,3347.7,0.2329]
[1762487418540,0.72318,3347.8,3347.7,0.2329]
[1762487418738,0.48419,3347.6,3347.5,0.87906751]
[1762487420235,3.21228156,3347.9,3347.5,0.87906751]
[1762487420441,0.00448156,3347.9,3347.8,0.2329]
[1762487421335,0.00448156,3347.9,3347.8,0.71706]
[1762487421939,0.00448156,3347.9,3347.8,8.71706]
[1762487422339,0.00448156,3347.9,3347.8,0.48416]
[1762487422538,0.00448156,3347.9,3347.8,0.71706]
[1762487423243,0.48863156,3347.9,3347.8,0.71706]
[1762487423444,0.48863156,3347.9,3347.8,0.2329]
[1762487423639,0.00448156,3347.9,3347.8,0.71707]
[1762487425043,0.48408,3348.4,3348.3,0.71697]
[1762487426243,0.48408,3348.4,3348.3,0.2329]
[1762487426748,0.48408,3348.4,3348.3,0.71699]
[1762487429042,0.48408,3348.4,3348.3,0.2329]
[1762487429242,0.48409,3348.3,3348.2,0.2329]
[1762487429650,0.48408,3348.5,3348.4,0.71698]
[1762487429845,0.48408,3348.5,3348.4,0.2329]
[1762487430147,0.72308,3348.5,3348.4,0.2329]
[1762487431049,0.48412,3348.1,3348.0,0.39708156]
[1762487431448,0.72312,3348.1,3348.0,0.00448156]
[1762487432448,0.239,3348.1,3347.6,3.2078]
[1762487432648,0.72319,3347.6,3347.5,0.00225751]
[1762487434245,0.1232,3347.5,3346.6,3.2078]
[1762487435045,0.48432,3346.7,3346.5,0.1597]
[1762487435252,0.48706916,3346.7,3346.6,0.2324]
[1762487435448,0.48706916,3346.7,3346.6,0.23571699]
[1762487435644,0.00273916,3346.7,3346.6,0.23571699]
[1762487435947,0.00273916,3346.7,3346.6,3.44351699]
[1762487436544,0.24513916,3346.7,3346.6,3.21111699]
[1762487437949,0.00273916,3346.7,3346.6,3.44351699]
[1762487438346,0.24013916,3346.7,3346.6,3.21111699]
[1762487439055,0.00273916,3346.7,3346.6,3.44331699]
[1762487439754,0.48705916,3346.7,3346.6,3.44331699]
[1762487439948,0.48705916,3346.7,3346.6,3.92765699]
[1762487440150,0.00273916,3346.7,3346.6,3.92765699]
[1762487440352,0.48705916,3346.7,3346.6,3.92765699]
[1762487442556,0.00273916,3346.7,3346.6,3.92765699]
[1762487443653,0.48705916,3346.7,3346.6,3.92765699]
[1762487443853,0.00273916,3346.7,3346.6,3.92765699]
[1762487444362,0.48705916,3346.7,3346.6,3.92765699]
[1762487446461,0.48705916,3346.7,3346.6,3.44331699]
[1762487446658,6.46305916,3346.7,3346.6,3.44331699]
[1762487446861,0.00273916,3346.7,3346.6,3.92765699]
[1762487447369,0.00273916,3346.7,3346.6,0.71654]
[1762487448068,0.48705916,3346.7,3346.6,0.71654]
[1762487448261,0.48705916,3346.7,3346.6,0.7199283]
[1762487448462,0.48705916,3346.7,3346.6,0.0033883]
[1762487448764,0.72445916,3346.7,3346.6,0.2355883]
[1762487449467,0.72445916,3346.7,3346.6,0.0033883]
[1762487449668,0.72445916,3346.7,3346.6,0.7199283]
[1762487449867,0.48705916,3346.7,3346.6,0.7199283]
[1762487450167,0.00273916,3346.7,3346.6,0.7199283]
[1762487450857,0.00273916,3346.7,3346.6,11.9277283]
[1762487451062,2.072e-05,3346.9,3346.8,0.71651]
[1762487452061,0.00386525,3346.9,3346.8,0.71651]
[1762487452260,0.48815525,3346.9,3346.8,0.71651]
[1762487452471,0.00386525,3346.9,3346.8,0.71651]
[1762487452670,0.48815525,3346.9,3346.8,0.71651]
[1762487453071,0.00386525,3346.9,3346.8,0.71651]
[1762487454172,0.48816525,3346.9,3346.8,0.71651]
[1762487454369,0.00386525,3346.9,3346.8,0.71651]
[1762487460669,3.69195,3347.9,3347.8,0.2322]
[1762487461368,3.92935,3347.9,3347.8,0.2322]
[1762487461572,3.93281602,3347.9,3347.8,0.2322]
[1762487461874,0.48418,3347.7,3347.6,0.71639]
[1762487462064,0.48424,3347.3,3347.2,3.2078]
[1762487462267,0.48427,3347.1,3347.0,0.86458]
[1762487462875,0.72167,3347.1,3347.0,0.86458]
[1762487463377,0.72167,3347.1,3347.0,0.63238]
[1762487464971,0.72167,3347.1,3347.0,0.86458]
[1762487465172,0.48426,3347.2,3347.1,0.71865]
[1762487465672,3.2078,3347.5,3347.3,0.48422]
[1762487465673,0.48422,3347.4,3347.3,0.48422]
[1762487465865,0.48422,3347.4,3347.0,0.1481]
[1762487465866,3.2078,3347.5,3347.4,0.71862]
[1762487466067,0.00346602,3347.9,3347.0,0.1481]
[1762487466068,0.48416,3347.8,3347.7,0.48418]
[1762487466274,0.00346602,3347.9,3347.5,0.1372]
[1762487466275,0.00346602,3347.9,3347.8,0.71856]
[1762487466468,0.00448156,3348.2,3348.1,0.71852]
[1762487467568,0.00767028,3348.2,3348.1,0.71852]
[1762487469481,0.00767028,3348.2,3348.1,0.2344]
[1762487471180,0.49178028,3348.2,3348.1,0.71852]
[1762487471384,0.00767028,3348.2,3348.1,0.71852]
[1762487471781,0.49178028,3348.2,3348.1,0.2344]
[1762487471983,0.00767028,3348.2,3348.1,0.71852]
[1762487472377,0.48412,3348.1,3348.0,0.1372]
[1762487472777,0.48412,3348.1,3348.0,0.3716]
[1762487473478,0.48412,3348.1,3348.0,0.85574]
[1762487474088,0.00767028,3348.2,3348.1,0.2344]
[1762487474280,0.72692,3348.1,3348.0,0.1372]
[1762487475787,0.48416,3347.8,3347.7,3.69198]
[1762487475986,0.72696,3347.8,3347.7,3.92638]
[1762487476283,0.48416,3347.8,3347.7,3.92638]
[1762487477172,0.72696,3347.8,3347.7,3.92638]
[1762487477780,0.72696,3347.8,3347.7,3.4422]
[1762487478082,0.72696,3347.8,3347.7,3.92638]
[1762487478788,0.48416,3347.8,3347.7,3.92638]
[1762487481379,0.00767028,3348.2,3348.0,0.85573]
[1762487481578,0.00767028,3348.2,3348.1,0.71852]
[1762487482875,0.49178028,3348.2,3348.1,0.71852]
[1762487483785,0.00767028,3348.2,3348.1,0.71852]
[1762487484584,3.45827028,3348.2,3347.5,0.1372]
[1762487484882,3.69192,3348.1,3348.0,0.3716]
[1762487485084,0.48412,3348.1,3348.0,0.85574]
[1762487485285,0.48412,3348.1,3348.0,0.3716]
[1762487485781,0.48412,3348.1,3348.0,0.85574]
[1762487485987,0.48412,3348.1,3348.0,0.3716]
[1762487486189,0.48412,3348.1,3348.0,0.1372]
[1762487486380,0.00767028,3348.2,3347.6,0.71859]
[1762487486381,0.48418,3347.7,3347.6,0.71859]
[1762487487280,0.48416,3347.9,3347.8,0.71856]
[1762487487482,0.00767028,3348.2,3348.1,0.71852]
[1762487489084,0.49178028,3348.2,3348.1,0.2344]
[1762487489888,0.73458028,3348.2,3348.0,0.1372]
[1762487490489,0.2428,3348.1,3348.0,0.1372]
[1762487490882,0.2428,3348.1,3348.0,0.3716]
[1762487491089,0.49178028,3348.2,3348.0,0.3716]
[1762487491790,0.2428,3348.1,3348.0,0.3716]
[1762487492395,3.2078,3348.1,3348.0,0.1372]
[1762487492592,3.2078,3348.1,3348.0,0.3716]
[1762487492901,3.69192,3348.1,3348.0,0.3716]
[1762487493088,0.48412,3348.1,3348.0,0.3716]
[1762487493395,0.48412,3348.1,3348.0,0.85574]
[1762487493895,3.69192,3348.1,3348.0,0.1372]
[1762487494083,3.93472,3348.1,3348.0,0.1372]
[1762487494285,3.2078,3348.1,3348.0,0.3716]
[1762487494485,0.49178028,3348.2,3348.1,0.71852]
[1762487494693,0.00767028,3348.2,3348.1,0.71852]
[1762487495489,0.49178028,3348.2,3348.1,0.2344]
[1762487495891,0.49178028,3348.2,3348.1,0.71852]
[1762487496897,0.00767028,3348.2,3348.1,0.71852]
[1762487497698,0.49178028,3348.2,3348.1,0.71852]
[1762487497899,0.49178028,3348.2,3348.1,0.2344]
[1762487498599,0.00767028,3348.2,3347.7,3.4578]
[1762487498799,0.48414,3348.0,3347.9,0.73414]
[1762487499197,0.48414,3348.0,3347.9,0.25]
[1762487499797,0.48416,3347.8,3347.7,3.94197]
[1762487500300,0.48416,3347.8,3347.7,0.73417]
[1762487501700,0.72706,3347.8,3347.7,0.73417]
[1762487502002,3.2078,3348.1,3347.3,0.73423]
[1762487502003,0.48422,3347.4,3347.3,0.73423]
[1762487503999,3.2078,3348.1,3347.6,0.25]
[1762487504303,0.48418,3347.7,3347.6,0.73419]
[1762487506002,0.48418,3347.7,3347.6,0.25]
[1762487506998,0.2429,3347.4,3347.2,0.48425]
[1762487507204,0.48424,3347.3,3347.2,0.73425]
[1762487507398,0.48421,3347.5,3347.4,0.48421]
[1762487507604,0.48425,3347.4,3347.3,0.73424]
[1762487509710,0.48422,3347.5,3347.4,0.73422]
[1762487510398,0.48421,3347.6,3347.5,0.87679]
[1762487510907,3.2078,3348.1,3347.6,0.48419]
[1762487511100,3.2078,3348.1,3348.0,0.3926]
[1762487511296,3.2078,3348.1,3348.0,0.87674]
[1762487511804,3.2078,3348.1,3348.0,0.1426]
[1762487511805,3.93482,3348.1,3348.0,0.1426]
[1762487512108,0.48416,3347.9,3347.8,0.73415]
[1762487512705,3.69194,3348.1,3348.0,0.87674]
[1762487512909,3.69194,3348.1,3348.0,0.3926]
[1762487513208,3.69194,3348.1,3348.0,0.87674]
[1762487513406,3.69192,3348.1,3348.0,0.87674]
[1762487514301,0.48412,3348.1,3348.0,0.62674]
[1762487514512,0.00767028,3348.2,3348.1,0.73412]
[1762487516006,0.49178028,3348.2,3348.1,0.73412]
[1762487516211,0.49178028,3348.2,3348.1,0.25]
[1762487516413,0.72702,3348.1,3348.0,0.87673]
[1762487516808,0.48412,3348.1,3348.0,0.87673]
[1762487517003,0.48412,3348.1,3348.0,0.62673]
[1762487517204,0.48412,3348.1,3347.1,0.48426]
[1762487517205,0.48424,3347.4,3347.1,0.48426]
[1762487517409,3.2078,3347.5,3347.1,0.48426]
[1762487518106,0.48427,3347.1,3347.0,0.3981]
[1762487518418,0.72718,3347.0,3346.9,0.48429]
[1762487518803,0.72716,3347.2,3347.1,0.48427]
[1762487519010,0.48426,3347.2,3347.1,0.73427]
[1762487520014,0.48427,3347.1,3347.0,0.1426]
[1762487520409,0.48427,3347.1,3347.0,0.87688]
[1762487520817,0.2429,3347.1,3347.0,0.62688]
[1762487521014,0.48425,3347.2,3347.1,0.73427]
[1762487521418,0.72715,3347.2,3347.1,0.48427]
[1762487521719,0.72713,3347.4,3347.3,0.48424]
[1762487522013,0.48425,3347.2,3347.1,0.48426]
[1762487522310,3.2078,3347.5,3346.8,0.25]
[1762487522511,3.331,3347.5,3346.8,0.25]
[1762487522712,0.72717,3347.1,3347.0,0.48428]
[1762487522916,0.72717,3347.1,3347.0,0.62688]
[1762487524314,0.72717,3347.1,3347.0,0.1426]
[1762487524521,0.72721,3346.8,3346.7,0.48432]
[1762487525415,0.71622,3346.7,3346.5,0.00448156]
[1762487525614,3.92402,3346.7,3346.5,0.00448156]
[1762487528722,0.71624,3346.6,3346.5,0.00448156]
[1762487529319,0.71638,3345.6,3345.5,0.1426]
[1762487529515,0.71969013,3345.6,3345.5,0.14608693]
[1762487530212,0.71969013,3345.6,3345.5,0.00348693]
[1762487531922,0.00331013,3345.6,3345.5,0.88828693]
[1762487532226,0.48779013,3345.6,3345.5,0.40378693]
[1762487532926,0.48779013,3345.6,3345.5,0.15518693]
[1762487532927,0.71969013,3345.6,3345.5,0.15518693]
[1762487533426,0.71969013,3345.6,3345.5,0.00348693]
[1762487534021,0.71969013,3345.6,3345.5,0.63968693]
[1762487534227,0.00331013,3345.6,3345.5,0.88828693]
[1762487535220,0.71969013,3345.6,3345.5,0.00348693]
[1762487535629,0.71969013,3345.6,3345.5,0.15518693]
[1762487536032,0.71969013,3345.6,3345.5,0.00348693]
[1762487536924,0.71969013,3345.6,3345.5,0.88828693]
[1762487537129,0.48779013,3345.6,3345.5,0.88828693]
[1762487537727,0.48779013,3345.6,3345.5,0.40378693]
[1762487538032,0.2319,3345.1,3345.0,0.1517]
[1762487538327,0.71647,3345.1,3345.0,0.63627]
[1762487538526,0.71647,3345.1,3345.0,0.88487]
[1762487538832,0.48452,3345.4,3345.3,0.2486]
[1762487539032,0.48452,3345.4,3345.3,0.25184441]
[1762487539333,0.71642,3345.4,3345.3,0.00324441]
[1762487540433,0.00331013,3345.6,3345.4,0.48451]
[1762487540630,0.00331013,3345.6,3345.5,0.8848]
[1762487541933,0.48779013,3345.6,3345.5,0.8848]
[1762487543635,0.00331013,3345.6,3345.5,0.8848]
[1762487544342,0.71969013,3345.6,3345.5,0.4003]
[1762487544537,0.71969013,3345.6,3345.5,0.1517]
[1762487544733,0.71969013,3345.6,3345.5,0.6362]
[1762487545831,0.48779013,3345.6,3345.5,0.8848]
[1762487546827,0.71969013,3345.6,3345.5,0.1517]
[1762487547428,0.2319,3345.4,3345.3,0.00324441]
[1762487547636,0.71641,3345.4,3345.3,0.48777441]
[1762487548735,0.71641,3345.4,3345.3,0.73637441]
[1762487548929,0.48451,3345.4,3345.3,0.73637441]
[1762487549431,0.00331013,3345.6,3345.5,0.8848]
[1762487551938,0.48779013,3345.6,3345.5,0.4003]
[1762487552338,0.00331013,3345.6,3345.5,0.8848]
[1762487554738,0.00331013,3345.6,3345.5,4.0926]
[1762487554936,1.013e-05,3345.6,3345.5,6.30006745]
[1762487555138,0.00448156,3345.9,3345.8,0.71335]
[1762487556037,0.00704603,3345.9,3345.8,0.71335]
[1762487560732,0.49148603,3345.9,3345.8,0.71335]
[1762487560938,0.00704603,3345.9,3345.8,0.71335]
[1762487561944,3.2078,3346.7,3346.6,0.73364]
[1762487561945,0.48433,3346.7,3346.6,0.73364]
[1762487562843,0.74193592,3346.7,3346.6,0.73364]
[1762487563444,0.48803592,3346.7,3346.6,0.73364]
[1762487563633,0.00370592,3346.7,3346.6,0.73364]
[1762487563839,0.48802592,3346.7,3346.6,0.73364]
[1762487565247,0.74192592,3346.7,3346.6,0.73364]
[1762487565449,0.48802592,3346.7,3346.6,0.73364]
[1762487569652,0.74192592,3346.7,3346.6,0.73364]
[1762487571249,0.48434,3346.6,3346.5,0.88315]
[1762487571646,0.73827,3346.4,3346.3,0.00448156]
[1762487573447,0.73827,3346.4,3346.3,0.48886156]
[1762487573653,0.73827,3346.4,3346.3,0.00448156]
[1762487580053,0.73838,3345.6,3345.3,3.21104441]
[1762487580251,3.6922,3346.2,3346.1,0.2493]
[1762487580656,0.73841,3345.4,3345.3,0.00324441]
[1762487580953,3.94621,3345.4,3345.3,0.00324441]
[1762487589451,12.86921,3345.4,3345.3,0.00324441]
[1762487590255,3.94621,3345.4,3345.3,0.00324441]
[1762487590466,0.2437,3344.6,3344.0,0.6342]
[1762487590658,0.4847,3344.1,3344.0,0.8849]
[1762487590861,0.4847,3344.1,3344.0,0.4002]
[1762487591560,0.48761753,3344.1,3344.0,0.40303447]
[1762487592561,0.48761753,3344.1,3344.0,0.88774447]
[1762487593558,0.00291753,3344.1,3344.0,8.88774447]
[1762487593861,0.48911156,3344.6,3344.5,0.3987]
[1762487594056,0.48911156,3344.6,3344.5,0.88334]
[1762487594451,0.48466,3344.4,3344.3,3.2078]
[1762487594652,0.48466,3344.4,3344.3,0.2507]
[1762487594859,0.48783861,3344.4,3344.3,0.2507]
[1762487595058,0.73153861,3344.4,3344.3,0.2507]
[1762487595958,0.48783861,3344.4,3344.3,0.73537]
[1762487596466,0.00317861,3344.4,3344.3,0.73537]
[1762487597459,0.48783861,3344.4,3344.3,0.73537]
[1762487597763,0.00317861,3344.4,3344.3,0.73537]
[1762487599061,0.00317861,3344.4,3344.3,8.73537]
[1762487599259,3.2078,3345.5,3345.1,0.48455]
[1762487599568,0.48455,3345.2,3345.1,0.73525]
[1762487600360,0.48780746,3345.2,3345.1,0.73525]
[1762487601066,0.00325746,3345.2,3345.1,0.73525]
[1762487601564,0.48779746,3345.2,3345.1,0.73525]
[1762487603059,0.00325746,3345.2,3345.1,0.73525]
[1762487603561,0.00325746,3345.2,3345.1,3.94305]
[1762487603762,3.2078,3345.9,3345.8,0.73516]
[1762487603958,0.48443,3346.0,3345.9,0.73514]
[1762487604165,0.48441,3346.1,3346.0,0.63242]
[1762487604364,0.48441,3346.1,3346.0,0.88312]
[1762487604771,0.48748887,3346.1,3346.0,0.88312]
[1762487605070,0.48748887,3346.1,3346.0,0.3987]
[1762487605271,0.48748887,3346.1,3345.7,0.00448156]
[1762487605272,0.72816,3345.8,3345.7,0.00448156]
[1762487608161,0.48446,3345.8,3345.7,0.00448156]
[1762487608361,0.72816,3345.8,3345.7,0.00448156]
[1762487610677,0.72816,3345.8,3345.7,0.25518156]
[1762487610975,0.72816,3345.8,3345.7,0.00448156]
[1762487616477,0.48446,3345.8,3345.7,0.25838156]
[1762487616775,0.72746,3345.8,3345.7,0.25838156]
[1762487616976,0.72746,3345.8,3345.7,0.00448156]
[1762487618876,0.48446,3345.8,3345.7,0.24158156]
[1762487619579,0.72846,3345.8,3345.7,0.24158156]
[1762487619782,0.72846,3345.8,3345.7,0.00448156]
[1762487623382,0.48446,3345.8,3345.7,0.24158156]
[1762487624985,0.72846,3345.8,3345.7,0.24158156]
[1762487625184,0.72846,3345.8,3345.7,0.00448156]
[1762487625784,0.72846,3345.8,3345.7,0.24158156]
[1762487625989,0.48446,3345.8,3345.7,0.24158156]
[1762487627779,0.72846,3345.8,3345.7,0.24158156]
[1762487627989,0.72846,3345.8,3345.7,0.00448156]
[1762487628980,0.72846,3345.8,3345.7,0.24158156]
[1762487629378,0.48446,3345.8,3345.7,0.24158156]
[1762487629580,0.48446,3345.8,3345.7,0.72605156]
[1762487629777,3.2078,3345.9,3345.8,0.48446]
[1762487630086,0.48444,3345.9,3345.8,0.72156]
[1762487631191,0.72846,3345.8,3345.7,0.00448156]
[1762487633086,0.48457,3345.0,3344.9,0.2371]
[1762487633890,0.4846,3344.8,3344.7,0.72171]
[1762487634087,0.48459,3345.0,3344.5,3.3558]
[1762487634282,0.244,3345.1,3345.0,0.1459]
[1762487634483,0.72856,3345.1,3345.0,0.383]
[1762487634790,0.48456,3345.1,3345.0,0.86757]
[1762487635789,0.72856,3345.1,3345.0,0.86757]
[1762487636190,0.72856,3345.1,3345.0,0.383]
[1762487636391,0.72861,3344.8,3344.7,0.48461]
[1762487636795,0.48461,3344.8,3344.7,0.72171]
[1762487636997,0.48459,3345.0,3344.9,0.72168]
[1762487637290,0.48459,3344.9,3344.8,0.4846]
[1762487637488,0.48459,3344.9,3344.8,0.7217]
[1762487638084,0.48459,3344.9,3344.8,0.2371]
[1762487638488,0.72859,3344.9,3344.8,0.7217]
[1762487638786,3.2078,3345.3,3344.5,3.3558]
[1762487639392,0.48463,3344.7,3344.6,0.72171]
[1762487641092,3.2078,3345.3,3344.9,0.2371]
[1762487641296,0.48453,3345.3,3345.2,0.72164]
[1762487641487,0.48449,3345.6,3345.5,0.383]
[1762487641688,0.72849,3345.6,3345.5,0.383]
[1762487642286,0.72849,3345.6,3345.5,0.8675]
[1762487642596,0.72849,3345.6,3345.5,0.6304]
[1762487643204,0.48454,3345.3,3345.2,0.2371]
[1762487643799,0.72854,3345.3,3345.2,0.2371]
[1762487644203,3.2078,3345.7,3345.3,0.72163]
[1762487644204,0.48453,3345.4,3345.3,0.72163]
[1762487644802,0.48455,3345.2,3345.1,0.73605]
[1762487646005,0.73845,3345.2,3345.1,0.73605]
[1762487646407,0.48453,3345.3,3345.2,0.48454]
[1762487646707,0.4845,3345.5,3345.4,0.2515]
[1762487647501,0.2539,3345.5,3345.0,0.1459]
[1762487647706,0.48456,3345.1,3345.0,0.3974]
[1762487647916,0.73846,3345.1,3345.0,0.1459]
[1762487648199,0.73846,3345.1,3345.0,0.3974]
[1762487648407,0.48456,3345.1,3345.0,0.3974]
[1762487648602,0.48456,3345.1,3345.0,0.88197]
[1762487649210,0.73846,3345.1,3345.0,0.88197]
[1762487649407,0.73846,3345.1,3345.0,0.63047]
[1762487650207,0.73849,3345.0,3344.9,0.48458]
[1762487650911,0.73849,3345.0,3344.9,0.73608]
[1762487651405,0.48459,3345.0,3344.9,0.73608]
[1762487652510,0.48456,3345.1,3345.0,0.87587]
[1762487652714,0.73846,3345.1,3345.0,0.3913]
[1762487653104,0.73846,3345.1,3345.0,0.87587]
[1762487655609,0.73846,3345.1,3345.0,0.3913]
[1762487655909,3.2078,3345.3,3344.0,3.86094555]
[1762487655910,0.78914,3344.5,3344.0,3.86094555]
[1762487656112,3.99694,3344.5,3344.0,0.14263447]
[1762487656714,3.94634,3344.5,3344.0,0.14263447]
[1762487657013,3.2078,3344.5,3344.4,0.25598156]
[1762487657618,3.3159,3345.0,3344.5,0.1398]
[1762487657815,0.2539,3344.6,3344.5,0.1398]
[1762487658016,0.2539,3344.6,3344.5,0.3913]
[1762487658314,0.4846,3344.9,3344.8,0.2515]
[1762487658515,3.2078,3345.0,3344.5,0.1398]
[1762487658516,0.48463,3344.6,3344.5,0.1398]
[1762487659221,0.48463,3344.6,3344.5,0.3913]
[1762487659410,0.4846,3344.9,3344.8,0.2515]
[1762487661215,0.2539,3344.5,3344.4,0.00448156]
[1762487661425,0.73854,3344.5,3344.4,0.25598156]
[1762487662618,0.73854,3344.5,3344.4,0.00448156]
[1762487663528,0.48464,3344.5,3344.4,0.25598156]
[1762487664318,0.73854,3344.5,3344.4,0.25598156]
[1762487665216,0.48461,3344.8,3344.5,0.1398]
[1762487665422,0.48463,3344.7,3344.5,0.1398]
[1762487665624,3.2078,3345.0,3344.9,0.2515]
[1762487665924,3.4617,3345.0,3344.8,0.4846]
[1762487666224,0.48461,3344.8,3344.7,0.2515]
[1762487666817,0.2539,3344.7,3344.6,0.48462]
[1762487667311,0.2539,3344.7,3344.6,0.73612]
[1762487669220,0.2539,3344.7,3344.6,0.2515]
[1762487670021,0.48461,3344.8,3344.6,0.2515]
[1762487670219,3.69238,3345.0,3344.9,0.2515]
[1762487671319,3.94628,3345.0,3344.9,0.2515]
[1762487671527,0.48461,3344.7,3344.6,0.73612]
[1762487671824,3.2078,3345.0,3344.7,0.48461]
[1762487672726,0.4846,3344.8,3344.7,0.73611]
[1762487673127,0.73851,3344.7,3344.6,2.20746745]
[1762487677825,0.73854,3344.5,3344.4,0.00448156]
[1762487678131,3.94634,3344.5,3344.4,0.00448156]
[1762487688738,3.99634,3344.5,3344.4,0.00448156]
[1762487691344,0.2334,3343.1,3343.0,3.71831108]
[1762487691643,3.2078,3343.1,3342.5,0.1398]
[1762487691936,3.69265,3343.1,3343.0,0.3754]
[1762487692138,0.48483,3343.3,3343.2,0.2356]
[1762487692336,0.0028471,3343.3,3343.2,3.4467198]
[1762487692535,3.2078,3344.1,3344.0,0.2356]
[1762487692844,3.6925,3344.1,3344.0,0.3754]
[1762487693342,0.48477,3343.7,3343.6,0.2356]
[1762487693542,0.48756715,3343.7,3343.6,0.2356]
[1762487693845,0.00279715,3343.7,3343.6,0.2356]
[1762487694044,0.00279715,3343.7,3343.6,8.2356]
[1762487696049,0.00279715,3343.7,3343.6,11.4434]
[1762487697147,0.00279715,3343.7,3343.6,20.3614]
[1762487697646,0.00279715,3343.7,3343.6,11.4434]
[1762487697836,0.00279715,3343.7,3343.6,20.3604]
[1762487698648,0.00279715,3343.7,3343.6,11.4434]
[1762487698849,0.00279715,3343.7,3343.6,20.3604]
[1762487699253,0.00279715,3343.7,3343.6,3.4434]
[1762487699647,0.00279715,3343.7,3343.6,12.3604]
[1762487700047,0.00279715,3343.7,3343.6,3.4434]
[1762487700547,0.00279715,3343.7,3343.6,20.3604]
[1762487701452,0.00279715,3343.7,3343.6,22.56786745]
[1762487701646,3.69242,3344.7,3344.6,0.2356]
[1762487701847,3.2078,3345.1,3345.0,0.2356]
[1762487702048,3.2078,3345.1,3345.0,0.3754]
[1762487702254,3.2078,3345.5,3345.4,0.2356]
[1762487702748,0.2334,3345.2,3345.1,0.00448156]
[1762487702947,0.1237,3345.0,3344.4,5.88]
[1762487703151,0.2334,3344.5,3344.1,8.939]
[1762487703747,0.48468,3344.3,3344.1,9.4237]
[1762487704050,0.48468,3344.3,3344.2,0.2356]
[1762487704244,0.48464,3344.6,3344.5,0.2356]